bitfinex-derivatives/quotes_ETHF0:USTF0_20241105
["timestamp","ask_amount","ask_price","bid_price","bid_amount"]
[1730827489074,5.1292,2466.8,2466.7,0.40546]
[1730827490075,1.0756,2466.8,2466.7,0.40546]
[1730827490668,1.0756,2466.8,2466.2,2.06423519]
[1730827490669,5.1292,2466.8,2466.2,4.25822519]
[1730827490862,3.15700879,2466.3,2466.0,1.0239]
[1730827491065,1.0756,2466.2,2466.1,0.40555]
[1730827491575,1.48114,2466.2,2466.0,1.42946]
[1730827491769,1.0756,2466.2,2466.0,1.42946]
[1730827491970,1.0756,2466.2,2466.0,1.0239]
[1730827492268,1.48115,2466.2,2466.0,1.0239]
[1730827492469,1.48115,2466.2,2466.0,1.42947]
[1730827492979,1.48115,2466.2,2466.0,1.0239]
[1730827493179,40.8,2466.1,2466.0,1.42947]
[1730827493475,40.8,2466.1,2466.0,1.0239]
[1730827493979,41.20555,2466.1,2466.0,1.5049485]
[1730827494669,40.8,2466.1,2466.0,1.9105185]
[1730827495276,40.8,2466.1,2466.0,1.5049485]
[1730827495570,40.8,2466.1,2466.0,1.9105185]
[1730827495776,40.8,2466.1,2466.0,1.5049485]
[1730827495978,41.20555,2466.1,2466.0,1.5049485]
[1730827499375,45.26075,2466.1,2466.0,0.4810485]
[1730827500276,45.26075,2466.1,2466.0,0.4659885]
[1730827502180,48.46855,2466.1,2466.0,0.4659885]
[1730827503086,48.063,2466.1,2465.4,1.09]
[1730827503279,0.40565,2465.6,2465.4,1.09]
[1730827503578,7.2638,2465.5,2464.8,3.2078]
[1730827503781,3.15700879,2465.4,2465.0,0.40574]
[1730827504075,3.15700879,2465.4,2464.9,2.9751]
[1730827504076,40.8,2465.4,2465.3,0.40569]
[1730827504877,3.15700879,2465.6,2465.1,3.2078]
[1730827505077,3.15700879,2465.6,2465.5,0.40565]
[1730827505481,43.95700879,2465.6,2465.4,0.40566]
[1730827505682,43.95700879,2465.6,2465.5,1.9555]
[1730827506183,3.15700879,2465.6,2465.5,2.36115]
[1730827507082,5.13190879,2466.0,2465.7,0.40561]
[1730827507295,3.15700879,2466.3,2465.9,0.40559]
[1730827507580,3.56253879,2466.3,2466.0,2.33987]
[1730827508682,3.56253879,2466.3,2466.0,1.9343]
[1730827508984,3.56253879,2466.3,2466.0,2.33986]
[1730827509281,3.56253879,2466.3,2466.0,1.9343]
[1730827509687,3.56253879,2466.3,2466.0,3.27047]
[1730827509890,3.56253879,2466.3,2466.0,2.8649]
[1730827510290,3.15700879,2466.3,2466.0,2.8649]
[1730827510484,0.40554,2466.2,2466.0,2.8649]
[1730827510781,3.15700879,2466.1,2466.0,2.8649]
[1730827514276,3.56255879,2466.1,2466.0,2.8649]
[1730827514590,3.56255879,2466.1,2466.0,0.9366]
[1730827516278,3.56255879,2466.1,2465.6,2.37123]
[1730827516279,7.21220879,2466.1,2465.6,2.37123]
[1730827516486,3.15700879,2465.9,2465.6,1.9656]
[1730827516684,3.15700879,2465.9,2465.6,1.0038]
[1730827516685,0.40562,2465.8,2465.6,1.0038]
[1730827516888,3.15700879,2465.9,2465.5,3.2078]
[1730827517095,3.15700879,2465.9,2465.4,1.0221]
[1730827517096,3.15700879,2465.6,2465.4,1.0221]
[1730827517383,1.38115,2465.5,2465.4,1.0221]
[1730827517579,2.38845,2465.5,2465.4,1.0221]
[1730827517987,2.38845,2465.5,2465.2,3.2078]
[1730827517988,1.9828,2465.5,2465.2,3.2078]
[1730827518284,0.40568,2465.4,2465.2,4.6356]
[1730827518492,0.40568,2465.4,2465.2,4.2299]
[1730827518882,1.9828,2465.5,2465.2,4.6356]
[1730827518883,2.38846,2465.5,2465.2,4.6356]
[1730827519288,0.40568,2465.4,2465.2,4.2299]
[1730827519483,3.56269879,2465.4,2465.2,1.0221]
[1730827519682,41.20569,2465.3,2465.2,1.0221]
[1730827520093,41.20569,2465.3,2465.0,0.40573]
[1730827520392,0.40571,2465.2,2465.0,0.9762]
[1730827521184,43.95700879,2465.3,2465.0,0.9762]
[1730827521596,44.36269879,2465.3,2465.0,1.38193]
[1730827521788,44.36269879,2465.3,2465.0,0.9762]
[1730827521987,44.36269879,2465.3,2465.0,1.38193]
[1730827522693,44.36269879,2465.3,2465.0,1.38194]
[1730827522885,44.36269879,2465.3,2465.1,0.40571]
[1730827522886,40.8,2465.3,2465.1,0.40571]
[1730827523086,41.20569,2465.3,2465.0,1.38193]
[1730827523789,43.95700879,2465.3,2465.0,1.38193]
[1730827524092,43.95700879,2465.3,2465.0,0.9762]
[1730827524389,0.9755,2465.5,2465.3,0.40568]
[1730827524591,0.9755,2465.5,2465.4,1.8797]
[1730827524795,41.7755,2465.5,2465.4,1.8797]
[1730827525383,40.8,2465.5,2465.4,1.8797]
[1730827526893,40.8,2465.5,2465.4,2.28537]
[1730827527388,3.15700879,2465.8,2465.6,0.40563]
[1730827527590,4.61968,2466.0,2465.7,0.40562]
[1730827527791,4.61967,2466.0,2465.8,0.9546]
[1730827527993,40.8,2465.9,2465.8,0.9546]
[1730827528386,44.8552,2465.9,2465.5,1.0092]
[1730827528591,3.15700879,2465.7,2465.4,4.146]
[1730827528894,3.15700879,2465.7,2465.3,1.0299]
[1730827528895,0.40565,2465.5,2465.3,1.0299]
[1730827529194,0.9904,2465.8,2465.3,1.0299]
[1730827529400,40.8,2465.9,2465.6,0.40562]
[1730827529401,42.8178,2465.9,2465.6,0.40562]
[1730827529587,42.8178,2465.9,2465.7,1.0299]
[1730827529792,41.8025,2465.9,2465.7,1.0299]
[1730827529992,42.20809,2465.9,2465.7,1.0299]
[1730827530505,42.20809,2465.9,2463.4,2.10085039]
[1730827530506,0.40587,2464.2,2463.4,2.10085039]
[1730827530700,3.15700879,2463.6,2463.4,0.40599]
[1730827530897,3.15700879,2463.6,2463.4,3.2078]
[1730827531194,3.15700879,2464.6,2463.4,3.2078]
[1730827531195,6.36480879,2464.3,2463.5,6.0055]
[1730827531400,3.15700879,2464.1,2463.9,0.40592]
[1730827531696,6.36480879,2464.3,2464.1,0.40588]
[1730827531894,6.36480879,2464.3,2464.2,0.9454]
[1730827532100,6.36480879,2464.3,2464.2,5.0038]
[1730827532490,6.36480879,2464.3,2464.2,5.40967]
[1730827532693,6.36480879,2464.6,2464.4,0.40582]
[1730827532898,3.15700879,2464.6,2464.5,0.40582]
[1730827533395,3.15700879,2464.6,2464.5,4.0576]
[1730827533595,3.15700879,2464.6,2464.2,0.9454]
[1730827533793,3.15700879,2464.6,2464.3,0.40583]
[1730827534096,3.15700879,2464.6,2464.5,0.40582]
[1730827534298,3.15700879,2464.6,2464.4,0.40583]
[1730827534605,3.15700879,2464.6,2464.2,0.9454]
[1730827534794,3.15700879,2464.6,2464.4,0.40582]
[1730827535098,3.15700879,2464.6,2464.5,0.40582]
[1730827535895,3.89716213,2464.6,2464.4,0.40583]
[1730827536093,3.89716213,2464.6,2464.2,0.9454]
[1730827536297,3.89716213,2464.3,2464.2,0.9454]
[1730827536695,3.89716213,2464.3,2464.2,1.35127]
[1730827537098,3.89716213,2464.3,2464.2,0.9454]
[1730827537297,3.89716213,2464.3,2464.0,1.0256]
[1730827537497,3.89716213,2464.3,2464.1,0.40587]
[1730827537701,3.89716213,2464.3,2464.2,0.40587]
[1730827539099,3.89716213,2464.3,2464.0,1.0256]
[1730827539302,3.89716213,2464.3,2464.2,0.40587]
[1730827541502,3.89716213,2464.3,2463.7,3.2078]
[1730827541702,0.938,2464.4,2464.3,0.40585]
[1730827541907,7.10496213,2464.5,2464.4,0.40583]
[1730827542108,3.2078,2464.5,2464.4,0.40583]
[1730827542305,4.85236213,2464.8,2464.4,4.0576]
[1730827542504,4.85236213,2464.8,2464.6,0.40579]
[1730827543404,3.2078,2464.9,2464.6,4.0576]
[1730827543610,3.2078,2464.9,2464.8,0.40577]
[1730827543998,3.2078,2464.9,2464.7,0.9949]
[1730827544211,3.2078,2464.9,2464.7,1.40068]
[1730827545609,3.89716213,2464.8,2464.5,0.9882]
[1730827545912,7.51076213,2464.6,2464.5,0.9882]
[1730827546217,7.10496213,2464.6,2464.5,0.9882]
[1730827547005,3.2078,2464.6,2464.5,1.39402]
[1730827547208,5.88096213,2464.8,2464.5,0.9882]
[1730827547408,5.88096213,2464.8,2464.6,0.4058]
[1730827548105,5.88096213,2464.8,2464.5,0.9882]
[1730827548106,5.88096213,2464.8,2464.5,1.39402]
[1730827548406,6.28674213,2464.8,2464.5,0.9882]
[1730827548803,5.88096213,2464.8,2464.5,1.39402]
[1730827549011,0.40579,2464.7,2464.5,0.9882]
[1730827549310,0.4058,2464.7,2464.5,0.9882]
[1730827550214,7.10496213,2464.6,2464.2,0.40587]
[1730827550517,7.10496213,2464.6,2464.3,1.41374]
[1730827550811,7.51076213,2464.6,2464.3,1.41374]
[1730827553012,7.10496213,2464.6,2464.4,0.40583]
[1730827553214,7.10496213,2464.6,2464.3,1.0079]
[1730827553514,0.40582,2464.5,2464.0,0.40589]
[1730827553705,0.40584,2464.4,2464.1,1.35288]
[1730827553902,3.89716213,2464.2,2464.1,0.947]
[1730827554315,4.92226213,2464.2,2464.1,0.947]
[1730827555014,4.92226213,2464.2,2464.1,1.35288]
[1730827556709,1.0251,2464.2,2464.1,1.35288]
[1730827556910,7.10496213,2464.6,2464.4,0.40582]
[1730827557308,6.37447751,2464.6,2464.4,0.40582]
[1730827557613,0.40583,2464.5,2464.2,1.38556]
[1730827557813,0.40584,2464.4,2464.2,1.38556]
[1730827558119,3.16667751,2464.3,2464.2,0.40587]
[1730827558516,0.9315,2464.4,2464.1,0.947]
[1730827558813,0.9315,2464.4,2464.3,0.40585]
[1730827560421,0.9315,2464.4,2464.2,0.40586]
[1730827560623,3.16667751,2464.3,2464.2,0.40586]
[1730827560833,4.14727751,2464.3,2464.2,0.40586]
[1730827562340,4.14727751,2464.3,2464.1,0.947]
[1730827562625,4.14727751,2464.3,2464.1,1.35288]
[1730827562824,4.14727751,2464.3,2464.2,0.40587]
[1730827563013,0.9315,2464.4,2464.3,0.40585]
[1730827564220,0.9315,2464.4,2464.2,0.40586]
[1730827564425,0.9315,2464.4,2464.1,0.947]
[1730827564630,0.9315,2464.4,2464.3,0.40585]
[1730827566315,4.13497751,2464.8,2464.1,4.1548]
[1730827566517,4.13497751,2464.8,2464.6,0.40579]
[1730827566518,0.9307,2464.7,2464.6,0.40579]
[1730827567126,0.9307,2464.7,2464.3,1.9793]
[1730827567316,0.9307,2464.7,2464.6,0.4058]
[1730827568028,0.9307,2464.7,2464.5,0.40581]
[1730827568633,0.9307,2464.7,2464.6,0.4058]
[1730827570334,0.9307,2464.7,2464.5,0.40581]
[1730827570525,3.16667751,2464.6,2464.5,0.40581]
[1730827570927,40.8,2465.2,2465.0,0.40573]
[1730827571123,0.9416,2465.1,2465.0,0.40574]
[1730827571330,7.72179751,2465.1,2464.8,0.40576]
[1730827571528,40.8,2465.0,2464.8,0.40576]
[1730827572143,40.8,2465.0,2464.7,1.9266]
[1730827572341,40.8,2465.0,2464.9,0.40575]
[1730827572933,4.1494,2465.1,2465.0,0.40574]
[1730827573133,0.9416,2465.1,2465.0,0.40574]
[1730827573331,3.16667751,2465.3,2464.7,1.9266]
[1730827573533,40.8,2465.2,2465.1,0.40571]
[1730827574034,3.2078,2465.4,2465.3,0.40569]
[1730827574240,0.9416,2465.6,2464.8,3.2078]
[1730827574428,40.8,2465.5,2464.9,1.53014178]
[1730827574734,43.96667751,2465.5,2465.4,0.40566]
[1730827576034,40.8,2465.5,2465.4,0.40566]
[1730827578229,6.39751751,2466.0,2465.1,3.2078]
[1730827578432,2.0352,2465.9,2465.2,4.1922]
[1730827578634,1.0308,2465.9,2465.8,0.4056]
[1730827580331,47.19751751,2466.0,2465.2,5.20643]
[1730827580332,47.19751751,2466.0,2465.3,1.01418]
[1730827580535,44.03084,2466.0,2465.9,0.40559]
[1730827581027,3.23084,2466.0,2465.9,0.40559]
[1730827581233,0.02304,2466.0,2465.9,0.40559]
[1730827590339,3.18971751,2466.0,2465.7,0.9796]
[1730827590535,3.18971751,2466.0,2465.4,3.2078]
[1730827590536,0.40563,2465.7,2465.4,3.61346]
[1730827590748,0.7199,2465.6,2465.4,3.61346]
[1730827590945,40.8,2465.5,2465.4,3.61346]
[1730827591950,40.8,2465.5,2465.4,0.40566]
[1730827592148,40.8,2465.5,2465.3,1.98758]
[1730827592354,40.8,2465.5,2465.4,0.40567]
[1730827595354,0.7199,2465.6,2465.5,0.40565]
[1730827595852,41.5199,2465.6,2465.5,0.40565]
[1730827596456,41.56847054,2465.6,2465.5,0.40565]
[1730827597257,0.76847054,2465.6,2465.5,0.40565]
[1730827597754,0.76847054,2465.6,2465.3,1.5819]
[1730827597957,1.17411054,2465.6,2465.4,0.40566]
[1730827598155,1.54807054,2465.6,2465.3,1.5819]
[1730827598452,0.04857054,2465.5,2465.4,0.40567]
[1730827603957,0.45424054,2465.5,2465.3,0.7866]
[1730827604161,0.45424054,2465.5,2465.1,1.5825]
[1730827604162,0.40574,2465.0,2464.8,0.40576]
[1730827604356,0.40574,2465.0,2464.8,0.8324]
[1730827604357,0.7225,2464.9,2464.8,0.8324]
[1730827604553,0.77107054,2464.9,2464.8,1.23817]
[1730827608758,0.40578,2464.8,2464.5,0.40581]
[1730827609160,0.40578,2464.8,2464.4,0.7846]
[1730827609363,0.96447054,2464.9,2464.4,1.19042]
[1730827609566,0.40581,2464.6,2464.4,0.7846]
[1730827609864,1.5389,2464.5,2464.4,0.7846]
[1730827610561,1.58747054,2464.5,2464.4,1.19043]
[1730827611360,1.58747054,2464.5,2464.4,0.40583]
[1730827611566,0.77997054,2464.5,2464.4,0.40583]
[1730827615171,41.57997054,2464.5,2464.4,0.40583]
[1730827615369,3.61359,2464.7,2464.4,0.40583]
[1730827615568,3.61359,2464.7,2464.5,0.40581]
[1730827615872,3.61358,2464.7,2464.5,0.40581]
[1730827616064,3.2078,2464.7,2464.6,0.4058]
[1730827618170,3.2078,2464.7,2464.6,4.4634]
[1730827619068,3.9166,2465.1,2464.9,0.40575]
[1730827619270,3.9166,2465.1,2465.0,0.7525]
[1730827620374,3.2078,2465.1,2465.0,1.15824]
[1730827620563,0.7037,2465.3,2465.2,0.4057]
[1730827621469,41.95514,2465.6,2465.2,0.40569]
[1730827621668,0.7037,2465.5,2465.3,0.40568]
[1730827622766,3.9115,2465.5,2465.1,1.3898]
[1730827622971,4.31716,2465.5,2465.1,1.3898]
[1730827623161,4.31716,2465.5,2465.2,0.4057]
[1730827625271,3.9115,2465.5,2465.3,0.40569]
[1730827626270,3.9115,2465.5,2465.0,0.7525]
[1730827626575,3.9115,2465.5,2465.4,0.40567]
[1730827627771,3.9115,2465.5,2465.0,0.7525]
[1730827628372,3.9115,2465.5,2465.1,0.40572]
[1730827628575,3.9115,2465.5,2465.0,0.7525]
[1730827628777,0.40568,2465.4,2465.1,0.40571]
[1730827628977,3.9115,2465.5,2465.0,0.7525]
[1730827629173,3.9115,2465.5,2465.0,1.15823]
[1730827629579,0.4057,2465.3,2465.0,1.15823]
[1730827629884,0.40575,2465.0,2464.7,3.61358]
[1730827630072,0.7498,2464.9,2464.7,3.2078]
[1730827630270,0.40578,2464.8,2464.5,1.16341]
[1730827630475,7.53003751,2464.9,2464.6,0.4058]
[1730827630671,7.12427751,2464.9,2464.5,0.7576]
[1730827630874,0.40577,2464.8,2464.5,1.16341]
[1730827631267,7.12427751,2464.9,2464.5,0.7576]
[1730827631473,0.40579,2464.7,2464.5,0.7576]
[1730827631776,3.61358,2464.8,2464.5,0.7576]
[1730827632080,0.4058,2464.7,2464.5,0.7576]
[1730827632275,0.4058,2464.6,2464.5,0.7576]
[1730827632484,3.2078,2464.8,2464.2,3.9126]
[1730827632485,7.2654,2464.8,2464.2,0.7048]
[1730827632675,0.40584,2464.4,2464.1,0.40588]
[1730827633178,41.20585,2464.3,2464.0,1.13329]
[1730827633383,40.8,2464.3,2464.0,0.7274]
[1730827633873,41.20586,2464.3,2464.0,0.7274]
[1730827634379,0.40589,2464.1,2463.7,0.40594]
[1730827634683,3.2078,2463.9,2463.6,0.7274]
[1730827634881,3.2078,2463.9,2463.8,0.40593]
[1730827635087,3.2078,2463.9,2463.7,0.40594]
[1730827635279,3.2078,2463.9,2463.8,0.40593]
[1730827636476,0.7468,2464.0,2463.7,0.705]
[1730827636681,1.1527,2464.0,2463.7,1.11094]
[1730827637274,0.40592,2463.9,2463.7,1.11094]
[1730827637581,3.2078,2463.8,2463.7,0.705]
[1730827637777,3.2078,2463.8,2463.7,1.11095]
[1730827638081,3.2078,2463.8,2463.7,0.705]
[1730827639172,3.2078,2463.8,2463.6,0.7274]
[1730827639380,0.40595,2463.7,2463.6,0.7274]
[1730827639581,3.2078,2463.8,2463.6,0.7274]
[1730827640080,3.61374,2463.8,2463.6,0.7274]
[1730827640781,0.40595,2463.7,2463.6,0.7274]
[1730827641177,3.61374,2463.8,2463.6,0.7274]
[1730827641676,0.40595,2463.7,2463.6,0.7274]
[1730827642184,0.40595,2463.7,2463.4,0.40599]
[1730827642380,0.7432,2463.6,2463.5,0.7339]
[1730827642585,0.7432,2463.6,2463.1,3.61384]
[1730827642783,0.7432,2463.6,2463.2,0.7339]
[1730827642984,0.406,2463.4,2463.2,0.7339]
[1730827643192,0.40602,2463.3,2463.2,0.7339]
[1730827643485,0.40608,2462.9,2462.6,0.203]
[1730827643682,3.2078,2463.0,2462.7,0.4061]
[1730827643889,3.2078,2463.0,2462.6,0.40613]
[1730827644084,40.8,2462.9,2462.5,0.7339]
[1730827644389,40.8,2462.9,2462.7,0.4061]
[1730827644582,40.8,2462.9,2462.6,0.40612]
[1730827644783,40.8,2462.9,2462.6,0.40613]
[1730827644992,40.8,2462.9,2462.6,0.40612]
[1730827645184,40.8,2462.9,2462.7,0.40611]
[1730827645887,45.26689,2462.9,2462.5,1.14004]
[1730827646085,0.40611,2462.8,2462.5,0.7339]
[1730827646282,40.8,2462.9,2462.5,0.7339]
[1730827646283,0.40612,2462.7,2462.5,0.7339]
[1730827646480,0.40611,2462.8,2462.5,0.7339]
[1730827647085,0.40611,2462.8,2462.5,1.14004]
[1730827647484,41.20609,2462.9,2462.5,1.14004]
[1730827648481,0.40611,2462.8,2462.5,0.7339]
[1730827648791,3.2078,2462.7,2462.5,0.7339]
[1730827648986,0.40623,2462.0,2461.9,0.203]
[1730827649186,0.40623,2462.0,2461.3,4.78405375]
[1730827649187,0.40628,2461.7,2461.3,0.40634]
[1730827649379,0.40628,2461.7,2461.0,3.2078]
[1730827649380,3.2078,2461.7,2461.1,0.7037]
[1730827649589,3.2078,2461.7,2461.6,0.6093]
[1730827649785,0.669,2461.9,2461.6,0.60929]
[1730827649984,3.16667751,2461.8,2461.7,0.203]
[1730827650289,47.17447751,2461.8,2461.3,0.40634]
[1730827650484,47.17447751,2461.8,2461.6,0.203]
[1730827650485,47.58074751,2461.8,2461.6,0.203]
[1730827650886,47.17447751,2461.8,2461.6,0.203]
[1730827651083,47.58074751,2461.8,2461.6,0.203]
[1730827651287,0.40628,2461.7,2461.6,0.203]
[1730827651490,47.58074751,2461.8,2461.6,0.203]
[1730827651789,47.17447751,2461.8,2461.6,0.203]
[1730827651989,3.2078,2461.8,2461.7,0.203]
[1730827652190,3.2078,2461.8,2461.7,0.8924]
[1730827653488,10.84313751,2461.8,2461.3,0.40633]
[1730827653690,6.37447751,2461.8,2461.6,0.203]
[1730827654286,3.2078,2461.8,2461.7,0.203]
[1730827654896,2.59813781,2461.8,2461.7,0.8881]
[1730827655398,6.37447751,2462.0,2461.7,1.29437]
[1730827655697,0.7014,2462.2,2461.9,0.60925]
[1730827655990,1.1076,2462.2,2462.1,0.203]
[1730827656294,4.27427751,2462.2,2462.1,0.203]
[1730827656490,0.40624,2462.0,2461.7,0.6851]
[1730827656701,3.86807751,2462.2,2462.0,0.203]
[1730827656991,0.40621,2462.1,2462.0,0.203]
[1730827658685,4.0616,2462.1,2461.7,0.6851]
[1730827658884,3.16667751,2461.9,2461.7,0.8881]
[1730827659093,6.37447751,2461.9,2461.7,0.8881]
[1730827659296,6.78072751,2461.9,2461.7,0.8881]
[1730827659500,41.20626,2461.8,2461.7,0.8881]
[1730827659797,0.40629,2461.7,2461.2,4.1007]
[1730827659996,0.7117,2461.7,2461.6,0.6093]
[1730827660187,6.78072751,2461.9,2461.6,0.6093]
[1730827660392,6.78072751,2461.9,2461.7,0.203]
[1730827660694,47.58072751,2461.9,2461.7,0.203]
[1730827660887,47.58072751,2461.9,2461.8,0.203]
[1730827660888,3.2078,2461.9,2461.8,0.203]
[1730827661194,3.2078,2461.9,2461.8,0.60926]
[1730827661393,3.16667751,2461.9,2461.8,0.60926]
[1730827662387,0.7117,2462.1,2462.0,0.40623]
[1730827662592,0.7117,2462.1,2462.0,0.203]
[1730827663288,1.11791,2462.1,2462.0,0.203]
[1730827663494,0.40623,2462.0,2461.9,0.6939]
[1730827663689,4.46783,2462.0,2461.9,0.6939]
[1730827664705,4.46783,2462.0,2461.7,0.40628]
[1730827664905,4.46783,2462.0,2461.4,0.6863]
[1730827664906,3.16667751,2461.9,2461.8,0.60926]
[1730827665596,3.57292751,2461.9,2461.8,0.203]
[1730827665798,6.78072751,2461.9,2461.8,0.203]
[1730827666197,6.37447751,2461.9,2461.8,0.203]
[1730827667702,6.37447751,2461.9,2461.8,0.60926]
[1730827668706,6.37447751,2461.9,2461.8,0.203]
[1730827669200,6.37447751,2461.9,2461.8,0.60926]
[1730827669407,6.37447751,2461.9,2461.8,0.203]
[1730827669710,6.78072751,2461.9,2461.8,0.203]
[1730827669902,6.37447751,2461.9,2461.8,0.203]
[1730827670204,3.2078,2461.9,2461.8,0.60926]
[1730827670508,0.7117,2462.1,2462.0,0.40623]
[1730827670708,0.7117,2462.1,2462.0,0.203]
[1730827671005,1.11791,2462.1,2462.0,0.203]
[1730827671402,0.7117,2462.1,2462.0,0.9201]
[1730827671595,0.7117,2462.1,2462.0,1.32633]
[1730827671803,6.37447751,2462.2,2462.0,1.32633]
[1730827672004,6.37447751,2462.2,2462.1,0.60921]
[1730827672606,6.37447751,2462.2,2462.1,0.203]
[1730827673418,6.78067751,2462.2,2462.1,0.203]
[1730827675907,6.37447751,2462.2,2462.1,0.203]
[1730827676103,6.37447751,2462.2,2462.1,0.60921]
[1730827676304,6.78067751,2462.2,2462.1,0.203]
[1730827685616,6.37447751,2462.2,2462.1,0.60921]
[1730827685808,6.37447751,2462.2,2462.1,0.951]
[1730827686008,3.86907751,2462.4,2462.3,0.40618]
[1730827686213,4.27523751,2462.4,2462.3,0.203]
[1730827687915,3.16667751,2462.4,2462.3,0.203]
[1730827688117,41.20615,2462.5,2462.3,0.60917]
[1730827688319,41.20615,2462.5,2462.4,0.203]
[1730827688516,44.37282751,2462.5,2462.4,0.203]
[1730827689018,43.96667751,2462.5,2462.4,0.60916]
[1730827689418,40.8,2462.5,2462.4,0.60916]
[1730827689818,3.2078,2462.6,2462.4,0.203]
[1730827690014,3.2078,2462.6,2462.5,1.35585]
[1730827690513,44.0078,2462.6,2462.5,1.35585]
[1730827691112,3.16667751,2462.7,2462.5,0.9497]
[1730827691420,6.78056751,2462.9,2462.7,0.40611]
[1730827691721,6.78056751,2462.9,2462.8,0.203]
[1730827692216,47.58056751,2462.9,2462.8,0.203]
[1730827692419,47.17447751,2462.9,2462.8,0.203]
[1730827692626,47.58055751,2462.9,2462.8,0.203]
[1730827694816,47.17447751,2462.9,2462.8,0.203]
[1730827695019,3.2078,2463.2,2462.8,0.203]
[1730827695217,3.2078,2463.2,2462.9,0.7265]
[1730827695421,44.0078,2463.2,2463.1,0.203]
[1730827696124,44.0078,2463.2,2463.1,0.60905]
[1730827697018,3.89557751,2463.4,2463.1,0.203]
[1730827697317,3.89557751,2463.4,2463.3,0.60902]
[1730827697520,44.69557751,2463.4,2463.3,0.60902]
[1730827697718,43.96667751,2463.4,2463.3,0.60902]
[1730827699925,48.02587751,2463.4,2462.8,3.2078]
[1730827700123,3.57273751,2463.1,2463.0,0.203]
[1730827702925,7.22667751,2463.1,2462.5,3.2078]
[1730827703119,3.6139,2462.8,2462.7,0.203]
[1730827703629,3.2078,2462.8,2462.7,0.203]
[1730827703830,3.6139,2462.8,2462.7,0.203]
[1730827704226,4.3584,2462.8,2462.7,0.203]
[1730827704528,5.0659,2462.8,2462.7,0.203]
[1730827711733,0.40615,2462.5,2462.4,0.6972]
[1730827711937,6.78062751,2462.5,2462.4,0.6972]
[1730827712129,10.84142751,2462.5,2462.4,0.6972]
[1730827712632,51.64142751,2462.5,2462.4,0.6972]
[1730827713140,47.58062751,2462.5,2462.4,0.6972]
[1730827713333,51.64142751,2462.5,2462.4,0.6972]
[1730827713523,0.40621,2462.1,2461.9,0.204]
[1730827713835,3.16667751,2462.1,2461.9,0.6879]
[1730827714023,1.09903,2462.0,2461.9,0.6879]
[1730827714427,1.09903,2462.0,2461.9,0.8909]
[1730827717234,5.16063,2462.0,2461.9,0.6879]
[1730827717932,4.7544,2462.0,2461.7,0.7101]
[1730827718133,6.78075751,2461.8,2461.6,0.7028]
[1730827718334,6.37447751,2461.8,2461.6,0.7028]
[1730827718736,4.0624,2461.7,2461.1,0.6706]
[1730827718943,3.61413,2461.4,2461.1,2.44067]
[1730827719235,40.8,2461.3,2461.1,2.44067]
[1730827719630,40.8,2461.3,2461.2,0.60936]
[1730827720030,40.8,2461.3,2461.2,0.203]
[1730827720529,40.8,2461.3,2461.2,0.60936]
[1730827721336,40.8,2461.3,2461.2,0.203]
[1730827721538,45.26955,2461.3,2461.1,0.7028]
[1730827721736,4.23313751,2461.2,2461.1,0.9058]
[1730827722038,4.23313751,2461.2,2461.1,0.7028]
[1730827722243,4.23313751,2461.2,2460.5,0.204]
[1730827722244,7.88997751,2461.2,2460.5,0.204]
[1730827722436,0.40643,2460.8,2460.7,0.203]
[1730827722749,3.57310751,2460.8,2460.7,0.203]
[1730827722937,4.27840751,2460.8,2460.7,0.203]
[1730827723540,3.87197751,2460.8,2460.7,0.203]
[1730827723842,4.27840751,2460.8,2460.7,0.203]
[1730827724435,3.2078,2460.9,2460.7,0.203]
[1730827724635,3.16667751,2461.2,2460.8,0.203]
[1730827724934,0.204,2461.5,2461.4,0.203]
[1730827724935,3.57299751,2461.5,2461.4,0.203]
[1730827725141,43.96667751,2461.5,2461.1,0.203]
[1730827725438,6.37447751,2461.2,2461.1,0.203]
[1730827725629,3.2078,2461.2,2461.1,0.203]
[1730827726039,3.2078,2461.2,2461.1,0.60938]
[1730827726644,3.16667751,2461.4,2461.1,0.60938]
[1730827726939,3.16667751,2461.4,2461.3,0.203]
[1730827727644,3.16667751,2461.4,2461.3,1.5205]
[1730827727936,3.16667751,2461.4,2461.3,2.232]
[1730827728535,6.78077751,2461.6,2461.3,2.63834]
[1730827728740,6.78077751,2461.6,2461.5,0.203]
[1730827729737,6.37447751,2461.6,2461.5,0.203]
[1730827729947,6.78077751,2461.6,2461.5,0.203]
[1730827730540,6.37447751,2461.6,2461.5,0.203]
[1730827730739,6.37447751,2461.6,2461.5,0.60931]
[1730827731039,3.16667751,2461.6,2461.5,0.60931]
[1730827732344,3.16667751,2461.6,2461.5,0.203]
[1730827732839,3.16667751,2461.6,2461.5,0.60931]
[1730827733938,6.78077751,2461.6,2461.5,0.203]
[1730827734140,6.78077751,2461.6,2461.3,2.029]
[1730827734141,0.40633,2461.4,2461.3,1.3639]
[1730827734341,3.57300751,2461.4,2461.3,1.3639]
[1730827734544,3.57300751,2461.4,2461.3,1.5669]
[1730827735239,3.16667751,2461.4,2461.3,1.5669]
[1730827736640,6.78080751,2461.4,2461.3,1.5669]
[1730827737444,6.37447751,2461.4,2461.3,1.5669]
[1730827737648,40.8,2461.8,2461.3,1.5669]
[1730827737649,3.16667751,2461.6,2461.3,1.97325]
[1730827737947,3.16667751,2461.6,2461.4,1.06743]
[1730827738247,3.16667751,2461.6,2461.5,0.203]
[1730827740845,3.16667751,2461.6,2461.5,0.60931]
[1730827741149,44.0078,2461.8,2461.6,0.40629]
[1730827741347,44.0078,2461.8,2461.7,0.893]